fUSD/lending_fUSD_20260121
["ID","MTS","AMOUNT","RATE_DAILY","PERIOD"]
[402994359,1769028633329,-212.36,0.00018,2]
[402994360,1769028633338,-820.48788714,0.0001801,2]
[402994400,1769028638988,-150.00051475,0.000171,2]
[402994402,1769028638998,-500.0,0.00017885,2]
[402994404,1769028639007,-571.00829373,0.00017885,2]
[402994409,1769028639054,-8.99170627,0.00017885,2]
[402994411,1769028639064,-500.0,0.0001794,2]
[402994414,1769028639074,-580.0,0.0001794,2]
[402994416,1769028639083,-357.1948729,0.00017995,2]
[402994418,1769028639093,-580.0,0.00017995,2]
[402994420,1769028639102,-179.51211286,0.0001801,2]
[402994422,1769028639112,-1000.0,0.00018011,2]
[402994424,1769028639121,-1000.0,0.00018021,2]
[402994426,1769028639130,-1196.26,0.00018027,2]
[402994428,1769028639140,-204.23631951,0.00018027,2]
[402994430,1769028639149,-500.0,0.00018027,2]
[402994432,1769028639158,-150.0,0.00018027,2]
[402994433,1769028639167,-500.0,0.00018027,2]
[402994436,1769028639177,-500.0,0.00018027,2]
[402994438,1769028639187,-503.51325329,0.00018027,2]
[402994439,1769028639197,-500.0,0.00018027,2]
[402994441,1769028639207,-424.0,0.00018028,2]
[402994443,1769028639217,-500.0,0.00018028,2]
[402994445,1769028639230,-500.0,0.00018028,2]
[402994446,1769028639240,-500.0,0.00018028,2]
[402994447,1769028639249,-212.36,0.00018046,2]
[402994448,1769028639259,-580.0,0.00018049,2]
[402994449,1769028639269,-169.63,0.00018053,2]
[402994450,1769028639278,-773.0,0.00018054,2]
[402994451,1769028639288,-511.0,0.00018082,2]
[402994452,1769028639297,-500.0,0.00018082,2]
[402994453,1769028639306,-150.0,0.00018082,2]
[402994454,1769028639315,-500.0,0.00018082,2]
[402994455,1769028639325,-500.0,0.00018082,2]
[402994456,1769028639334,-500.0,0.00018082,2]
[402994457,1769028639344,-424.0,0.00018083,2]
[402994458,1769028639353,-500.0,0.00018083,2]
[402994459,1769028639363,-500.0,0.00018083,2]
[402994460,1769028639373,-500.0,0.00018083,2]
[402994461,1769028639382,-773.0,0.00018091,2]
[402994462,1769028639392,-212.36,0.00018092,2]
[402994463,1769028639401,-2514.0,0.00018114,2]
[402994464,1769028639410,-773.0,0.00018119,2]
[402994465,1769028639419,-500.0,0.00018137,2]
[402994466,1769028639428,-250.0,0.00018137,2]
[402994467,1769028639437,-500.0,0.00018137,2]
[402994468,1769028639446,-500.0,0.00018137,2]
[402994469,1769028639455,-500.0,0.00018137,2]
[402994470,1769028639463,-424.0,0.00018137,2]
[402994471,1769028639474,-500.0,0.00018137,2]
[402994472,1769028639484,-500.0,0.00018137,2]
[402994473,1769028639493,-500.0,0.00018137,2]
[402994474,1769028639502,-212.36,0.00018138,2]
[402994475,1769028639524,-200.0,0.0001818,2]
[402994476,1769028639541,-200.0,0.0001818,2]
[402994477,1769028639561,-200.0,0.0001818,2]
[402994478,1769028639580,-212.36,0.00018184,2]
[402994479,1769028639594,-500.0,0.00018192,2]
[402994480,1769028639614,-500.0,0.00018192,2]
[402994481,1769028639634,-500.0,0.00018192,2]
[402994482,1769028639652,-500.0,0.00018192,2]
[402994483,1769028639670,-424.0,0.00018192,2]
[402994484,1769028639687,-500.0,0.00018192,2]
[402994485,1769028639705,-500.0,0.00018192,2]
[402994486,1769028639720,-500.0,0.00018192,2]
[402994487,1769028639738,-212.36,0.0001823,2]
[402994488,1769028639753,-500.0,0.00018245,2]
[402994489,1769028639770,-303.55125424,0.00018245,2]
[402994490,1769028639785,-574.12855637,0.00018245,2]
[402994491,1769028639800,-500.0,0.00018247,2]
[402994492,1769028639821,-271.24421117,0.00018247,2]
[402994493,1769028639836,-540.19453195,0.00018247,2]
[402994494,1769028639852,-2514.0,0.00018247,2]
[402994495,1769028639868,-424.0,0.00018247,2]
[402994496,1769028639884,-500.0,0.00018247,2]
[402994497,1769028639898,-500.0,0.00018247,2]
[402994498,1769028639912,-500.0,0.00018247,2]
[402994499,1769028639927,-511.0,0.00018271,2]
[402994500,1769028639942,-212.36,0.00018276,2]
[402994501,1769028639957,-1196.26,0.00018301,2]
[402994502,1769028639971,-424.0,0.00018302,2]
[402994503,1769028639986,-500.0,0.00018302,2]
[402994504,1769028640000,-500.0,0.00018302,2]
[402994505,1769028640016,-500.0,0.00018302,2]
[402994506,1769028640032,-212.36,0.00018322,2]
[402994507,1769028640047,-1876.0,0.00018345,2]
[402994508,1769028640062,-424.0,0.00018357,2]
[402994509,1769028640077,-500.0,0.00018357,2]
[402994510,1769028640092,-500.0,0.00018357,2]
[402994511,1769028640107,-500.0,0.00018357,2]
[402994512,1769028640122,-200.0,0.00018362,2]
[402994513,1769028640136,-200.0,0.00018362,2]
[402994514,1769028640152,-200.0,0.00018362,2]
[402994515,1769028640168,-1564.0,0.00018381,2]
[402994516,1769028640183,-773.0,0.00018388,2]
[402994517,1769028640199,-150.00051475,0.000184,3]
[402994518,1769028640214,-424.0,0.00018411,2]
[402994519,1769028640229,-500.0,0.00018411,2]
[402994520,1769028640244,-500.0,0.00018411,2]
[402994521,1769028640259,-500.0,0.00018411,2]
[402994522,1769028640275,-224.0,0.00018418,2]
[402994523,1769028640291,-1645.87,0.00018442,2]
[402994524,1769028640306,-202.59,0.00018443,2]
[402994525,1769028640323,-689.0,0.00018454,2]
[402994527,1769028640338,-424.0,0.00018466,2]
[402994529,1769028640353,-500.0,0.00018466,2]
[402994530,1769028640371,-500.0,0.00018466,2]
[402994531,1769028640386,-500.0,0.00018466,2]
[402994532,1769028640402,-1977.0,0.00018491,2]
[402994533,1769028640418,-511.0,0.00018493,2]
[402994534,1769028640434,-158.0,0.00018505,2]
[402994535,1769028640449,-152.0,0.00018505,2]
[402994536,1769028640464,-151.0,0.00018505,2]
[402994537,1769028640480,-424.0,0.00018521,2]
[402994538,1769028640495,-500.0,0.00018521,2]
[402994539,1769028640510,-630.0,0.00018521,2]
[402994540,1769028640524,-500.0,0.00018521,2]
[402994541,1769028640539,-408.0,0.00018528,2]
[402994542,1769028640555,-773.0,0.00018535,2]
[402994543,1769028640570,-151.0,0.00018539,2]
[402994544,1769028640584,-151.0,0.00018539,2]
[402994545,1769028640599,-1264.0,0.00018539,2]
[402994546,1769028640614,-151.0,0.00018539,2]
[402994547,1769028640628,-200.0,0.00018545,2]
[402994548,1769028640642,-200.0,0.00018545,2]
[402994549,1769028640657,-1000.0,0.00018547,2]
[402994550,1769028640672,-1801.0,0.00018564,2]
[402994551,1769028640690,-1196.26,0.00018575,2]
[402994552,1769028640699,-424.0,0.00018576,2]
[402994553,1769028640709,-500.0,0.00018576,2]
[402994554,1769028640718,-500.0,0.00018576,2]
[402994555,1769028640729,-487.0,0.00018601,2]
[402994556,1769028640741,-424.0,0.00018631,2]
[402994557,1769028640750,-329.53291889,0.00018631,2]
[402994558,1769028640759,-320.0,0.00018631,2]
[402994559,1769028640769,-997.0,0.00018638,2]
[402994560,1769028640780,-773.0,0.00018642,2]
[402994561,1769028640790,-636.0,0.00018674,2]
[402994562,1769028640799,-500.0,0.00018685,2]
[402994563,1769028640809,-424.0,0.00018685,2]
[402994564,1769028640819,-773.0,0.00018705,2]
[402994565,1769028640829,-480.0,0.00018711,2]
[402994566,1769028640838,-773.0,0.00018712,2]
[402994567,1769028640848,-511.0,0.00018712,2]
[402994568,1769028640858,-773.0,0.00018725,2]
[402994569,1769028640867,-200.0,0.00018731,2]
[402994573,1769028641195,-200.0,0.00018731,2]
[402994574,1769028641215,-424.0,0.0001874,2]
[402994575,1769028641252,-1795.0,0.00018747,2]
[402994576,1769028641267,-169.63,0.00018768,2]
[402994577,1769028641279,-972.0,0.00018784,2]
[402994578,1769028641289,-773.0,0.00018793,2]
[402994579,1769028641298,-500.0,0.00018793,2]
[402994580,1769028641307,-595.37131296,0.00018793,2]
[402994581,1769028641316,-424.0,0.00018795,2]
[402994582,1769028641325,-603.08839735,0.00018841,2]
[402994583,1769028641334,-1196.26,0.00018849,2]
[402994584,1769028641343,-424.0,0.0001885,2]
[402994585,1769028641352,-773.0,0.00018869,2]
[402994586,1769028641362,-151.0,0.00018869,2]
[402994587,1769028641371,-152.0,0.00018869,2]
[402994588,1769028641380,-151.0,0.00018869,2]
[402994589,1769028641389,-152.0,0.00018869,2]
[402994590,1769028641398,-151.0,0.00018869,2]
[402994591,1769028641407,-151.0,0.00018869,2]
[402994592,1769028641416,-151.0,0.00018869,2]
[402994593,1769028641425,-151.0,0.00018869,2]
[402994594,1769028641434,-151.0,0.00018869,2]
[402994595,1769028641443,-151.0,0.00018869,2]
[402994596,1769028641452,-151.0,0.00018869,2]
[402994597,1769028641461,-151.0,0.00018869,2]
[402994598,1769028641470,-151.0,0.00018869,2]
[402994599,1769028641480,-151.0,0.00018869,2]
[402994600,1769028641489,-151.0,0.00018869,2]
[402994601,1769028641499,-151.0,0.00018869,2]
[402994602,1769028641508,-151.0,0.00018869,2]
[402994603,1769028641517,-511.0,0.0001888,2]
[402994604,1769028641526,-424.0,0.00018904,2]
[402994605,1769028641535,-219.03992829,0.00018941,2]
[402994606,1769028641544,-1264.0,0.00018948,2]
[402994607,1769028641553,-440.16951769,0.00018959,2]
[402994608,1769028641562,-995.287,0.00018972,2]
[402994609,1769028641571,-300.0,0.00019,2]
[402994610,1769028641580,-511.0,0.00019006,2]
[402994611,1769028641589,-253.97,0.00019065,2]
[402994612,1769028641598,-1196.26,0.00019123,2]
[402994613,1769028641608,-511.0,0.00019162,2]
[402994614,1769028641617,-1000.0,0.00019172,2]
[402994615,1769028641627,-500.0,0.00019178,2]
[402994616,1769028641636,-20118.33,0.00019178,2]
[402994617,1769028641645,-215.96,0.00019178,30]
[402994618,1769028641654,-773.0,0.00019179,2]
[402994619,1769028641664,-500.0,0.00019233,2]
[402994620,1769028641673,-1645.87,0.00019244,2]
[402994621,1769028641682,-2514.0,0.00019254,2]
[402994622,1769028641691,-511.0,0.00019286,2]
[402994623,1769028641701,-500.0,0.00019288,2]
[402994624,1769028641711,-511.0,0.00019318,2]
[402994625,1769028641720,-500.0,0.00019341,2]
[402994626,1769028641731,-617.40005154,0.00019341,2]
[402994627,1769028641743,-154.78966408,0.00019342,2]
[402994628,1769028641752,-250.0,0.00019361,2]
[402994629,1769028641761,-420.0,0.00019385,2]
[402994630,1769028641771,-1196.26,0.00019397,2]
[402994631,1769028641780,-151.0,0.000194,2]
[402994632,1769028641789,-202.59,0.00019414,2]
[402994633,1769028641798,-1680.0,0.00019478,2]
[402994634,1769028641809,-169.63,0.00019483,2]
[402994635,1769028641819,-500.0,0.00019485,2]
[402994636,1769028641828,-531.0,0.000196,2]
[402994637,1769028641837,-1000.0,0.0001967,2]
[402994638,1769028641846,-694.631145,0.0001967,2]
[402994639,1769028641856,-1196.26,0.00019671,2]
[402994640,1769028641865,-150.0,0.000197,7]
[402994641,1769028641875,-150.00051475,0.000197,8]
[402994642,1769028641884,-1000.0,0.0001987,2]
[402994643,1769028641895,-500.0,0.0001987,2]
[402994644,1769028641905,-508.92671197,0.00019889,2]
[402994645,1769028641915,-640.24385345,0.00019889,2]
[402994646,1769028641924,-165.17,0.0001989,2]
[402994647,1769028641934,-3000.0,0.00019899,2]
[402994648,1769028641943,-3587.73445889,0.000199,2]
[402994649,1769028641953,-120061.71999357,0.000199,2]
[402994650,1769028641963,-1900.0,0.000199,7]
[402994651,1769028641972,-1196.26,0.00019945,2]
[402994652,1769028641982,-1067.73274922,0.0002,30]
[402994653,1769028641991,-227.66,0.00020036,14]
[402994654,1769028642000,-221.45,0.00020151,2]
[402994655,1769028642010,-169.63,0.00020199,2]
[402994656,1769028642019,-1196.26,0.00020219,2]
[402994657,1769028642028,-407.84620136,0.00020277,2]
[402994658,1769028642038,-158.37327714,0.0002031,2]
[402994659,1769028642047,-202.59,0.00020384,2]
[402994660,1769028642056,-200.0,0.00020436,2]
[402994661,1769028642065,-663.93287602,0.00020437,2]
[402994662,1769028642074,-1196.26,0.00020493,2]
[402994663,1769028642086,-3754.29693723,0.00020535,2]
[402994664,1769028642095,-7092.26785107,0.00020543,2]
[402994665,1769028642105,-1196.26,0.00020767,2]
[402994666,1769028642114,-328.36499109,0.00020854,2]
[402994667,1769028642123,-394.27187092,0.00020854,2]
[402994668,1769028642132,-409.52,0.00020925,2]
[402994669,1769028642142,-688.49839244,0.00020985,2]
[402994670,1769028642151,-150.00051475,0.00020999,13]
[402994671,1769028642160,-350.0,0.00021,2]
[402994672,1769028642169,-1196.36,0.00021041,2]
[402994673,1769028642178,-587.0,0.00021156,2]
[402994674,1769028642187,-260.36,0.0002123,2]
[402994675,1769028642197,-202.59,0.00021355,2]
[402994676,1769028642206,-2351.0,0.00021363,2]
[402994677,1769028642216,-684.49384559,0.00021533,2]
[402994678,1769028642225,-288.32869996,0.00021625,4]
[402994679,1769028642236,-250.0,0.00021805,2]
[402994680,1769028642245,-715.18,0.00022,7]
[402994681,1769028642255,-221.45,0.00022025,2]
[402994682,1769028642264,-298.92102999,0.00022139,2]
[402994683,1769028642273,-150.00051475,0.00022299,17]
[402994684,1769028642283,-200.0,0.0002232,2]
[402994685,1769028642292,-202.59,0.00022326,2]
[402994686,1769028642301,-235.65838618,0.00022475,2]
[402994687,1769028642311,-2900.0,0.000229,8]
[402994688,1769028642320,-1732.49,0.0002308,2]
[402994689,1769028642329,-823.0,0.0002309,2]
[402994690,1769028642339,-22169.0,0.000231,2]
[402994691,1769028642349,-202.59,0.00023297,2]
[402994692,1769028642358,-310.057,0.00023337,3]
[402994693,1769028642367,-2380.416,0.00023337,3]
[402994694,1769028642379,-3754.29693723,0.0002337,2]
[402994695,1769028642389,-7092.26785107,0.00023377,2]
[402994696,1769028642399,-5533.0,0.000234,3]
[402994697,1769028642408,-3292.0,0.0002343,2]
[402994698,1769028642418,-150.00051475,0.00023599,22]
[402994699,1769028642427,-5533.0,0.000238,5]
[402994700,1769028642438,-10473.0,0.000239,2]
[402994701,1769028642449,-215.96,0.00024225,30]
[402994702,1769028642459,-500.0,0.00024247,2]
[402994703,1769028642469,-202.59,0.00024267,2]
[402994704,1769028642480,-1000.0,0.00024658,2]
[402994705,1769028642489,-221.45,0.00024704,2]
[402994706,1769028642498,-150.0,0.00024746,2]
[402994707,1769028642508,-1152.0,0.00025199,2]
[402994708,1769028642517,-202.59,0.00025238,2]
[402994709,1769028642526,-221.45,0.00025507,2]
[402994710,1769028642536,-715.18,0.000256,7]
[402994711,1769028642544,-1920.0,0.00025697,2]
[402994712,1769028642554,-11452.28,0.00025798,2]
[402994713,1769028642563,-240.23811669,0.00025945,2]
[402994714,1769028642572,-150.00051475,0.00026199,31]
[402994715,1769028642581,-1524.41729282,0.00026202,2]
[402994716,1769028642590,-151.28,0.00026202,2]
[402994717,1769028642599,-3754.29693723,0.00026206,2]
[402994718,1769028642608,-202.59,0.00026209,2]
[402994719,1769028642618,-7092.26785107,0.00026212,2]
[402994720,1769028642628,-531.0,0.00026311,8]
[402994721,1769028642638,-182.48947764,0.00026334,2]
[402994722,1769028642649,-200.0,0.00026784,2]
[402994723,1769028642658,-1591.55982241,0.00026841,14]
[402994724,1769028642667,-1081.6112474,0.00026909,2]
[402994725,1769028642677,-470.40657766,0.00026909,2]
[402994726,1769028642687,-28828.0,0.00027142,2]
[402994727,1769028642697,-333.94854561,0.00027311,2]
[402994728,1769028642706,-3474.0,0.00027366,2]
[402994729,1769028642716,-1407.0,0.00027366,2]
[402994730,1769028642726,-489.637,0.00027366,2]
[402994731,1769028642735,-566.0,0.00027366,2]
[402994732,1769028642747,-3900.962,0.00027366,2]
[402994733,1769028642756,-150.0,0.00027369,2]
[402994734,1769028642767,-500.0,0.00027397,20]
[402994735,1769028642776,-252.2,0.00027397,2]
[402994736,1769028642787,-150.00051475,0.00027499,35]
[402994737,1769028642796,-1613.0,0.00027502,2]
[402994738,1769028642806,-500.0,0.00028575,2]
[402994739,1769028642818,-150.00051475,0.00028798,40]
[402994740,1769028642828,-2000.0,0.00029,2]
[402994741,1769028642838,-3754.29693723,0.00029041,2]
[402994742,1769028642847,-7092.26785107,0.00029046,2]
[402994743,1769028642856,-235.65838617,0.00029126,2]
[402994744,1769028642866,-215.96,0.00029272,30]
[402994745,1769028642876,-338.18,0.000293,14]
[402994746,1769028642886,-715.18,0.000293,7]
[402994747,1769028642895,-2807.70018034,0.00029841,14]
[402994748,1769028642905,-500.0,0.0002997,2]
[402994749,1769028642915,-1000.0,0.0002997,2]
[402994750,1769028642924,-500.0,0.00029999,2]
[402994751,1769028642933,-304.63210555,0.00029999,2]
[402994752,1769028642943,-500.0,0.00029999,2]
[402994753,1769028642951,-500.0,0.00029999,2]
[402994754,1769028642960,-500.0,0.00029999,2]
[402994755,1769028642970,-500.0,0.00029999,2]
[402994756,1769028642980,-467.01704797,0.00029999,2]
[402994757,1769028642989,-4000.0,0.0003,30]
[402994758,1769028642999,-2258.0,0.00030015,2]
[402994759,1769028643008,-150.00051475,0.00030098,44]
[402994760,1769028643017,-200.0,0.00030205,2]
[402994761,1769028643027,-2000.0,0.000303,2]
[402994762,1769028643037,-1903.88,0.00030366,2]
[402994763,1769028643047,-566.0,0.00030366,2]
[402994764,1769028643057,-158.37327714,0.00030465,2]
[402994766,1769028643067,-4200.15155227,0.00030841,28]
[402994768,1769028643077,-5682.9465,0.00030841,28]
[402994769,1769028643086,-200.0,0.00031248,2]
[402994770,1769028643095,-150.00051475,0.00031398,48]
[402994772,1769028643104,-2000.0,0.000316,2]
[402994773,1769028643114,-3511.0,0.000316,2]
[402994775,1769028643124,-3754.29693723,0.00031877,2]
[402994776,1769028643133,-7092.26785107,0.00031881,2]
[402994777,1769028643143,-500.0,0.00032055,2]
[402994778,1769028643270,-715.18,0.000325,7]
[402994779,1769028643282,-150.00051475,0.00032698,52]
[402994780,1769028643292,-1993.0,0.00032758,2]
[402994781,1769028643301,-500.0,0.00032877,7]
[402994783,1769028643311,-500.0,0.00032877,7]
[402994785,1769028643320,-500.0,0.00032877,7]
[402994787,1769028643329,-500.0,0.00032877,7]
[402994789,1769028643339,-500.0,0.00032877,7]
[402994791,1769028643347,-201.94511964,0.00032877,7]
[402994793,1769028643356,-169.0,0.00033,14]
[402994794,1769028643365,-508.0,0.00033,14]
[402994796,1769028643375,-531.0,0.00033022,14]
[402994797,1769028643384,-508.0,0.00033151,30]
[402994798,1769028643393,-150.00051475,0.00033998,56]
[402994799,1769028643403,-2001.0,0.00034,30]
[402994800,1769028643412,-392.31342715,0.00034149,120]
[402994801,1769028643421,-501.59915555,0.00034149,120]
[402994803,1769028643431,-200.0,0.00034295,5]
[402994804,1769028643440,-215.96,0.00034319,30]
[402994805,1769028643449,-169.0,0.00034521,30]
[402994806,1769028643458,-508.0,0.00034521,30]
[402994807,1769028643467,-3754.29693723,0.00034712,2]
[402994808,1769028643478,-7092.26785107,0.00034715,2]
[402994809,1769028643487,-3000.0,0.00035,30]
[402994810,1769028643496,-1002.0,0.00035,30]
[402994811,1769028643506,-500.0,0.00035096,2]
[402994812,1769028643515,-200.0,0.00035227,5]
[402994813,1769028643524,-150.00051492,0.00035298,61]
[402994814,1769028643533,-2000.0,0.000353,2]
[402994815,1769028643543,-1000.0,0.00035375,2]
[402994816,1769028643552,-1000.0,0.00035402,2]
[402994817,1769028643561,-1000.0,0.00035428,2]
[402994818,1769028643570,-156.82051841,0.00035464,2]
[402994819,1769028643579,-439.6819,0.0003564,69]
[402994820,1769028643588,-439.6819,0.0003564,69]
[402994821,1769028643598,-439.68191,0.0003564,69]
[402994822,1769028643609,-439.6819,0.0003564,69]
[402994823,1769028643618,-200.0,0.00035711,10]
[402994824,1769028643628,-235.65838617,0.00035776,10]
[402994825,1769028643637,-10000.0,0.00035838,2]
[402994826,1769028643646,-1000.0,0.00035876,7]
[402994827,1769028643656,-150.0,0.00035889,7]
[402994828,1769028643665,-2042.458204,0.00035915,120]
[402994829,1769028643675,-500.0,0.00035964,30]
[402994830,1769028643685,-500.0,0.0003597,2]
[402994831,1769028643694,-1000.0,0.0003597,2]
[402994832,1769028643704,-151.0,0.00036,2]
[402994833,1769028643714,-7793.87218745,0.00036,2]
[402994834,1769028643723,-151.0,0.00036,2]
[402994835,1769028643732,-3000.0,0.00036,30]
[402994836,1769028643743,-439.68191,0.00036,73]
[402994837,1769028643753,-439.6819,0.00036,73]
[402994838,1769028643762,-200.0,0.00036102,5]
[402994839,1769028643771,-170.0,0.00036247,30]
[402994841,1769028643781,-511.0,0.00036247,30]
[402994842,1769028643790,-219.62680432,0.00036474,2]
[402994843,1769028643799,-200.0,0.00036569,4]
[402994844,1769028643808,-200.0,0.00036584,4]
[402994845,1769028643820,-154.03031195,0.00036597,65]
[402994846,1769028643829,-500.0,0.00036781,30]
[402994847,1769028643839,-1607.61794903,0.000368,2]
[402994848,1769028643847,-1951.25189202,0.000368,2]
[402994849,1769028643856,-500.0,0.00036846,30]
[402994850,1769028643866,-156.71,0.000369,14]
[402994851,1769028643875,-14100.1730582,0.0003691,2]
[402994852,1769028643884,-255.0,0.00036947,30]
[402994853,1769028643894,-165.35323052,0.00037,2]
[402994854,1769028643903,-281.82,0.000373,30]
[402994855,1769028643912,-7063.11103354,0.0003739,2]
[402994856,1769028643922,-3754.29693723,0.00037548,2]
[402994857,1769028643931,-7092.26785107,0.0003755,2]
[402994858,1769028643940,-11452.28,0.00037579,2]
[402994859,1769028643949,-4324.08399015,0.0003759,2]
[402994860,1769028643958,-211.6088061,0.00037819,120]
[402994861,1769028643967,-201.72565527,0.0003788,2]
[402994862,1769028643975,-2000.0,0.00038,30]
[402994863,1769028643985,-773.0,0.00038,2]
[402994864,1769028643994,-152.0,0.00038024,3]
[402994865,1769028644002,-200.0,0.00038038,4]
[402994866,1769028644011,-200.0,0.00038093,7]
[402994867,1769028644021,-2250.0,0.000381,33]
[402994868,1769028644030,-1920.30768511,0.000381,33]
[402994869,1769028644039,-200.0,0.00038159,5]
[402994870,1769028644048,-200.0,0.00038215,3]
[402994871,1769028644058,-226.34924093,0.0003855,2]
[402994872,1769028644067,-508.0,0.00038663,90]
[402994873,1769028644077,-53820.3062667,0.000387,2]
[402994874,1769028644086,-16014.00303599,0.00038874,2]
[402994875,1769028644095,-25000.0,0.00038874,15]
[402994876,1769028644105,-10690.13935999,0.00038874,15]
[402994877,1769028644114,-25000.0,0.00038874,15]
[402994878,1769028644123,-361.2911,0.00038888,30]
[402994879,1769028644132,-3900.0,0.000389,14]
[402994880,1769028644141,-5800.0,0.00038975,14]
[402994881,1769028644150,-300.0,0.00038975,2]
[402994882,1769028644159,-300.0,0.00038975,2]
[402994883,1769028644168,-850.48650463,0.00038975,2]
[402994884,1769028644178,-304.23239932,0.00038975,2]
[402994885,1769028644187,-300.0,0.00038975,2]
[402994886,1769028644196,-579.48942375,0.00038975,2]
[402994887,1769028644205,-300.0,0.00038975,2]
[402994888,1769028644214,-300.0,0.00038975,2]
[402994889,1769028644223,-300.0,0.00038975,2]
[402994890,1769028644234,-300.0,0.00038975,2]
[402994891,1769028644244,-305.40833228,0.00038975,2]
[402994892,1769028644253,-300.0,0.00038975,2]
[402994893,1769028644262,-300.0,0.00038975,2]
[402994894,1769028644271,-300.0,0.00038975,2]
[402994895,1769028644280,-456.00338787,0.00038975,2]
[402994896,1769028644289,-300.0,0.00038975,2]
[402994897,1769028644298,-300.0,0.00038975,2]
[402994898,1769028644307,-1075.48337091,0.00038975,2]
[402994899,1769028644316,-300.0,0.00038975,2]
[402994900,1769028644326,-300.0,0.00038975,2]
[402994901,1769028644335,-300.0,0.00038975,2]
[402994902,1769028644344,-369.14396502,0.00038975,2]
[402994903,1769028644353,-300.0,0.00038975,2]
[402994904,1769028644362,-300.0,0.00038975,2]
[402994905,1769028644371,-300.0,0.00038975,2]
[402994906,1769028644380,-300.0,0.00038975,2]
[402994907,1769028644389,-300.0,0.00038975,2]
[402994908,1769028644398,-300.0,0.00038975,2]
[402994909,1769028644408,-515.44314342,0.00038975,2]
[402994910,1769028644416,-304.38145112,0.00038975,2]
[402994911,1769028644425,-300.0,0.00038975,2]
[402994912,1769028644434,-300.0,0.00038975,2]
[402994913,1769028644444,-300.0,0.00038975,2]
[402994914,1769028644452,-300.0,0.00038975,2]
[402994915,1769028644462,-300.0,0.00038975,2]
[402994916,1769028644471,-300.0,0.00038975,2]
[402994917,1769028644482,-300.0,0.00038975,2]
[402994918,1769028644490,-300.0,0.00038975,2]
[402994919,1769028644499,-300.0,0.00038975,2]
[402994920,1769028644509,-300.0,0.00038975,2]
[402994921,1769028644518,-850.48650463,0.00038975,2]
[402994922,1769028644527,-304.23239932,0.00038975,2]
[402994923,1769028644537,-300.0,0.00038975,2]
[402994924,1769028644546,-579.48942375,0.00038975,2]
[402994925,1769028644555,-300.0,0.00038975,2]
[402994926,1769028644564,-300.0,0.00038975,2]
[402994927,1769028644573,-300.0,0.00038975,2]
[402994928,1769028644582,-300.0,0.00038975,2]
[402994929,1769028644590,-305.40833228,0.00038975,2]
[402994930,1769028644599,-300.0,0.00038975,2]
[402994931,1769028644608,-300.0,0.00038975,2]
[402994932,1769028644617,-300.0,0.00038975,2]
[402994933,1769028644626,-456.00338787,0.00038975,2]
[402994934,1769028644636,-300.0,0.00038975,2]
[402994935,1769028644645,-300.0,0.00038975,2]
[402994936,1769028644654,-1075.48337091,0.00038975,2]
[402994937,1769028644663,-300.0,0.00038975,2]
[402994938,1769028644672,-300.0,0.00038975,2]
[402994939,1769028644680,-300.0,0.00038975,2]